fUSD/lending_fUSD_20240730
["ID","MTS","AMOUNT","RATE_DAILY","PERIOD"]
[333656862,1722311448180,-5511.2815,0.00010997,2]
[333656864,1722311448192,-4643.55379647,0.00010997,2]
[333657389,1722311527299,800.0,0.00026986,120]
[333657395,1722311584280,800.0,0.00026986,120]
[333657396,1722311603117,500.0,0.00026999,120]
[333657399,1722311822928,800.0,0.00026986,120]
[333657400,1722311887189,800.0,0.00026986,120]
[333657401,1722311944957,800.0,0.00026986,120]
[333657403,1722312012424,800.0,0.00026986,120]
[333657405,1722312160062,326.0,0.00027,120]
[333657406,1722312170137,-860.22,8.406e-05,2]
[333657407,1722312170162,-158.65320615,8.41e-05,2]
[333657408,1722312170187,-200.04476946,8.41e-05,2]
[333657409,1722312170212,-151.03380091,8.41e-05,2]
[333657410,1722312170238,-47.04822348,8.41e-05,2]
[333657416,1722312632186,-429.8742519,8.219e-05,2]
[333657417,1722312632199,-387.3257481,8.219e-05,2]
[333657418,1722312632210,-8.12550617,8.22e-05,2]
[333657419,1722312632291,-151.9103094,8.22e-05,2]
[333657420,1722312632301,-196.56350179,8.22e-05,2]
[333657421,1722312632312,-349.2878402,8.22e-05,2]
[333657422,1722312632321,-5868.27444455,8.4e-05,2]
[333657423,1722312632334,-1262.3898738,8.4e-05,2]
[333657424,1722312632344,-150.0,8.409e-05,2]
[333657425,1722312632354,-300.0,8.409e-05,2]
[333657426,1722312632364,-798.60927432,8.41e-05,2]
[333657427,1722312632373,-155.0,8.41e-05,2]
[333657428,1722312632383,-1370.09326791,8.41e-05,2]
[333657429,1722312632392,-411.54934528,8.41e-05,2]
[333657430,1722312632403,-208.73657468,8.41e-05,2]
[333657431,1722312632414,-1222.62482187,8.41e-05,2]
[333657432,1722312632427,-9.14083693,8.41e-05,2]
[333657433,1722312632439,-4911.12267374,8.41e-05,2]
[333657434,1722312632449,-1632.78059601,8.41e-05,2]
[333657435,1722312632459,-961.54526089,8.41e-05,2]
[333657436,1722312632470,-1792.62489659,8.41e-05,2]
[333657437,1722312632481,-81773.07307774,8.41e-05,2]
[333657438,1722312632492,-469.48305765,8.41e-05,2]
[333657439,1722312632510,-2346.57743581,8.41e-05,2]
[333657440,1722312632532,-1728.39618865,8.41e-05,2]
[333657441,1722312632543,-789.65,8.41e-05,2]
[333657442,1722312632554,-1070.57254291,8.41e-05,2]
[333657443,1722312632605,-878.11552167,8.41e-05,2]
[333657444,1722312632616,-1300.99,8.41e-05,2]
[333657445,1722312632627,-378.25609224,8.41e-05,2]
[333657446,1722312632638,-441.08533386,8.41e-05,2]
[333657447,1722312638126,-200.04476946,8.22e-05,2]
[333657448,1722312638135,-1266.64976154,8.41e-05,2]
[333657449,1722312638179,-1200.04944682,8.41e-05,2]
[333657450,1722312638235,-1212.87718,8.41e-05,2]
[333657451,1722312638247,-513.35890909,8.41e-05,2]
[333657452,1722312638340,-31302.0624026,8.41e-05,2]
[333657453,1722312638551,-3000.0,8.41e-05,2]
[333657473,1722312640490,-364.83757329,8.41e-05,2]
[333657501,1722312643372,-104054.83792954,8.41e-05,2]
[333657502,1722312643381,-2935.66751859,8.41e-05,2]
[333657503,1722312643390,-215.79553693,8.41e-05,2]
[333657504,1722312643400,-3067.76814312,8.41e-05,2]
[333657505,1722312643409,-207.00138333,8.41e-05,2]
[333657506,1722312643419,-196.56350179,8.41e-05,2]
[333657507,1722312643434,-160.03585391,8.41e-05,2]
[333657508,1722312643443,-420.0,9.25e-05,2]
[333657509,1722312643452,-150.0,9.444e-05,2]
[333657510,1722312643462,-150.0,9.602e-05,2]
[333657511,1722312643474,-23890.0,9.657e-05,2]
[333657512,1722312643483,-250.0,9.681e-05,2]
[333657513,1722312643492,-200.0,9.694e-05,2]
[333657514,1722312643501,-1985.62,9.955e-05,2]
[333657515,1722312643512,-181.61,9.959e-05,2]
[333657516,1722312643522,-880.0,9.975e-05,2]
[333657517,1722312643531,-587.0,0.00010175,2]
[333657518,1722312643540,-212.06657119,0.00010194,2]
[333657519,1722312643550,-155.0,0.00010194,2]
[333657520,1722312643559,-632.7016962,0.00010227,2]
[333657521,1722312643568,-227.61,0.00010411,3]
[333657522,1722312643577,-817.2,0.00010471,2]
[333657524,1722312643587,-8949.49025933,0.000105,2]
[333657526,1722312643600,-742.5,0.000105,2]
[333657528,1722312643611,-336.718,0.000105,2]
[333657534,1722312646362,-910.07126,0.000105,2]
[333657535,1722312646415,-2580.28709736,0.000105,2]
[333657536,1722312646471,-33500.0,0.000105,2]
[333657537,1722312646526,-643.97892178,0.000105,2]
[333657538,1722312646581,-1394.51005659,0.000105,2]
[333657539,1722312646635,-315.86816959,0.000105,2]
[333657540,1722312646647,-2522.7804,0.000105,2]
[333657541,1722312646690,-517.49928082,0.000105,2]
[333657546,1722312672928,2442.6,0.00027,120]
[333657552,1722312806791,500.0,0.00026999,120]
[333657553,1722312967171,11865.95318098,0.00027,120]
[333657555,1722313391255,507.13,6.151e-05,2]
[333657556,1722313405598,4920.26351067,6.151e-05,2]
[333657557,1722313415783,301.4626702,6.151e-05,2]
[333657558,1722313422676,412.04743726,6.151e-05,2]
[333657559,1722313442541,155.37562233,6.151e-05,2]
[333657560,1722313460579,3067.76814312,6.151e-05,2]
[333657561,1722313479214,38415.69404688,6.151e-05,2]
[333657562,1722313499622,2563.45728906,6.151e-05,2]
[333657563,1722313502116,2563.45728906,6.151e-05,2]
[333657564,1722313549583,2930.58991595,6.151e-05,2]
[333657565,1722313623117,2563.45728906,6.151e-05,2]
[333657566,1722313715667,2563.45728906,6.151e-05,2]
[333657567,1722313768123,2563.45728906,6.151e-05,2]
[333657583,1722313832336,-258.56139209,6.925e-05,2]
[333657586,1722313832346,-2563.45728906,7.456e-05,2]
[333657588,1722313832355,-846.47,8.219e-05,2]
[333657590,1722313832365,-150.71639531,9.444e-05,2]
[333657592,1722313832374,-150.0,9.56e-05,2]
[333657593,1722313832384,-300.0,9.6e-05,3]
[333657595,1722313832393,-5353.47,9.651e-05,2]
[333657598,1722313832402,-250.0,9.693e-05,2]
[333657599,1722313832411,-300.0,9.699e-05,2]
[333657600,1722313832420,-700.0,9.7e-05,3]
[333657601,1722313832429,-369.8,9.705e-05,2]
[333657602,1722313832439,-181.61,9.79e-05,2]
[333657603,1722313832448,-1100.0,9.8e-05,3]
[333657604,1722313832457,-231.1,9.8e-05,2]
[333657605,1722313832466,-499.99,9.8e-05,2]
[333657606,1722313832475,-1400.0,9.9e-05,3]
[333657607,1722313832485,-910.0,9.948e-05,2]
[333657608,1722313832494,-1800.0,0.0001,3]
[333657609,1722313832507,-1394.10197316,0.00010194,2]
[333657610,1722313832516,-962.63902652,0.00010194,2]
[333657611,1722313832525,-830.0,0.00010291,2]
[333657612,1722313832534,-4409.341,0.000104,2]
[333657613,1722313832543,-2956.9289,0.000104,2]
[333657614,1722313832552,-468.6531,0.000104,2]
[333657615,1722313832561,-2178.2237,0.000104,2]
[333657616,1722313832571,-3000.0,0.000104,2]
[333657617,1722313832580,-300.0,0.000104,3]
[333657618,1722313832589,-306.17,0.000104,2]
[333657619,1722313832598,-2500.0,0.000104,2]
[333657620,1722313832607,-204.33327791,0.000104,2]
[333657621,1722313832616,-632.7016962,0.000104,2]
[333657622,1722313832626,-227.61,0.00010411,2]
[333657623,1722313832635,-846.47,0.00010451,2]
[333657624,1722313832644,-290719.8679499,0.000105,2]
[333657625,1722313832656,-446.17024212,0.000105,2]
[333657626,1722313832667,-347.40099992,0.000105,2]
[333657627,1722313832678,-4684.42654972,0.000105,2]
[333657628,1722313832688,-538.88,0.000105,2]
[333657629,1722313832699,-816.8683284,0.000105,2]
[333657630,1722313832710,-619.48075157,0.000105,2]
[333657631,1722313832721,-505.43097376,0.000105,2]
[333657632,1722313832736,-414.96820624,0.000105,2]
[333657633,1722313832747,-1057.3,0.000105,2]
[333657648,1722313838480,-456.69602113,7.456e-05,2]
[333657649,1722313838489,-393.52475497,0.000105,2]
[333657650,1722313838500,-1022.29096018,0.000105,2]
[333657651,1722313838591,-448.7075297,0.000105,2]
[333657652,1722313838703,-11491.499373,0.000105,2]
[333657653,1722313838715,-610.09299413,0.000105,2]
[333657654,1722313838728,-6491.85,0.000105,2]
[333657655,1722313838819,-2440.56888441,0.000105,2]
[333657657,1722313840517,-361693.21997009,0.000105,2]
[333657658,1722313840528,-39948.2208885,0.000105,2]
[333657659,1722313840539,-5807.43776704,0.000105,2]
[333657660,1722313840550,-16251.08364864,0.000105,2]
[333657661,1722313840562,-1576.42479179,0.000105,2]
[333657662,1722313840581,-880.75873053,0.000105,2]
[333657663,1722313840592,-568.13080662,0.000105,2]
[333657664,1722313840634,-14901.011465,0.000105,2]
[333657665,1722313840701,-278.90148228,0.000105,2]
[333657666,1722313840750,-371.43290433,0.000105,2]
[333657667,1722313840818,-10687.20286552,0.000105,2]
[333657668,1722313840832,-1085.22766312,0.000105,2]
[333657669,1722313840845,-458.15582577,0.000105,2]
[333657670,1722313840857,-334.2349341,0.000105,2]
[333657671,1722313840870,-522.809,0.000105,2]
[333657672,1722313840882,-135438.78553093,0.000105,2]
[333657673,1722313840893,-3122.9190384,0.000105,2]
[333657674,1722313840926,-24081.24398683,0.000105,2]
[333657680,1722313843399,-383.69509971,0.000105,2]
[333657682,1722313843458,-687.11902492,0.000105,2]
[333657683,1722313843571,-793.22381522,0.000105,2]
[333657684,1722313843583,-89534.47213334,0.000105,2]
[333657685,1722313843629,-632.40367227,0.000105,2]
[333657686,1722313843641,-4937.84566354,0.000105,2]
[333657687,1722313843741,-7130.5,0.000105,2]
[333657735,1722313846456,-74783.74088315,0.000105,2]
[333657736,1722313846569,-5322.75488516,0.000105,2]
[333657737,1722313846580,-3017.85968205,0.000105,2]
[333657738,1722313846628,-1023.445605,0.000105,2]
[333657739,1722313846688,-4803.45941549,0.000105,2]
[333657740,1722313846699,-418.74467495,0.000105,2]
[333657741,1722313846748,-74024.90584167,0.000105,2]
[333657742,1722313846759,-300.0,0.000105,2]
[333657748,1722313987194,800.0,0.00026986,120]
[333657763,1722315032205,-831.35,8.219e-05,2]
[333657764,1722315032215,-360.15,9.411e-05,2]
[333657766,1722315032224,-250.0,9.418e-05,2]
[333657768,1722315032234,-193.08,9.429e-05,2]
[333657770,1722315032243,-912.980292,9.876e-05,2]
[333657772,1722315032252,-150.0,9.89e-05,2]
[333657774,1722315032262,-1000.0,9.926e-05,2]
[333657775,1722315032272,-591.1223,0.00010205,2]
[333657776,1722315032282,-1000.0,0.000103,2]
[333657777,1722315032291,-1985.62,0.000103,2]
[333657778,1722315032300,-157.20549693,0.00010381,2]
[333657779,1722315032309,-157.20549693,0.00010391,2]
[333657780,1722315032319,-300.0,0.00010399,2]
[333657781,1722315032329,-6173.528,0.000104,2]
[333657782,1722315032339,-1000.0,0.000104,2]
[333657783,1722315032349,-3354.351,0.000104,2]
[333657784,1722315032358,-172.76251856,0.000104,2]
[333657785,1722315032367,-15171.61155619,0.000104,2]
[333657786,1722315032457,-80568.14094381,0.000104,2]
[333657787,1722315032467,-157.20549693,0.000104,2]
[333657788,1722315032478,-160.13519913,0.000104,2]
[333657789,1722315032489,-1979.02907763,0.000104,2]
[333657790,1722315032498,-1000.0,0.000104,2]
[333657791,1722315032508,-831.35,0.00010451,2]
[333657792,1722315032518,-440524.1970496,0.000105,2]
[333657793,1722315032544,-849.67,0.000105,2]
[333657794,1722315032556,-1715.62958026,0.000105,2]
[333657795,1722315032570,-4205.98716292,0.000105,2]
[333657796,1722315032581,-404.0,0.000105,2]
[333657797,1722315032593,-621.77146932,0.000105,2]
[333657798,1722315032605,-883.97785601,0.000105,2]
[333657799,1722315032616,-450.25,0.000105,2]
[333657800,1722315032629,-995.87545876,0.000105,2]
[333657801,1722315032646,-3065.99360389,0.000105,2]
[333657802,1722315032658,-1002.293869,0.000105,2]
[333657803,1722315032670,-9564.36366649,0.000105,2]
[333657811,1722315037709,-162.03628945,8.22e-05,2]
[333657812,1722315037719,-150.03360134,8.22e-05,2]
[333657813,1722315037728,-280.12786897,0.000105,2]
[333657814,1722315037820,-1654.07562386,0.000105,2]
[333657815,1722315037831,-1879.79073718,0.000105,2]
[333657816,1722315037876,-596.6636366,0.000105,2]
[333657817,1722315037932,-45384.08269956,0.000105,2]
[333657818,1722315037943,-33401.09212311,0.000105,2]
[333657833,1722315039874,-42096.09779385,0.000105,2]
[333657834,1722315039931,-311.6,0.000105,2]
[333657843,1722315042614,-3352.20994348,0.000105,2]
[333657844,1722315042625,-13359.99999999,0.000105,2]
[333657847,1722315045595,-4107.44016929,0.000105,2]
[333657848,1722315045607,-4767.91202083,0.000105,2]
[333657849,1722315045618,-140621.86100619,0.000105,2]
[333657850,1722315045707,-136159.99243984,0.000105,2]
[333657851,1722315045719,-2295.18520297,0.000105,2]
[333657852,1722315045730,-1000.18527722,0.000105,2]
[333657853,1722315045822,-5891.39520654,0.000105,2]
[333657854,1722315045882,-7458.23049576,0.000105,2]
[333657855,1722315045940,-543.84702044,0.000105,2]
[333657857,1722315081645,335755.34509192,0.00027,120]
[333657890,1722315974550,11391.19735435,0.00025,60]
[333657913,1722316231838,-817.21,8.219e-05,2]
[333657914,1722316231848,-200.04477992,8.22e-05,2]
[333657915,1722316231857,-198.04433216,8.22e-05,2]
[333657916,1722316231867,-1043.85999485,9.608e-05,2]
[333657917,1722316231878,-1100.4363308,9.608e-05,2]
[333657918,1722316231896,-2007.93367435,9.608e-05,2]
[333657919,1722316231906,-1000.0,9.677e-05,2]
[333657920,1722316231916,-248.0,9.682e-05,2]
[333657921,1722316231926,-1986.7918,9.688e-05,2]
[333657922,1722316231936,-250.0,9.708e-05,2]
[333657923,1722316231945,-300.0,9.999e-05,2]
[333657924,1722316231955,-150.0,0.0001,2]
[333657925,1722316231966,-287.1,0.0001,2]
[333657926,1722316231976,-200.0,0.0001,2]
[333657927,1722316231986,-1000.0,0.000103,2]
[333657928,1722316231996,-711.15,0.00010377,2]
[333657929,1722316232006,-150.99,0.00010399,2]
[333657930,1722316232015,-646.34,0.00010399,2]
[333657931,1722316232025,-3316.6029,0.000104,2]
[333657932,1722316232035,-3993.4269,0.000104,2]
[333657933,1722316232045,-10782.0475,0.000104,2]
[333657934,1722316232055,-565.5835,0.000104,2]
[333657935,1722316232064,-645.62,0.000104,2]
[333657936,1722316232074,-3000.0,0.000104,2]
[333657937,1722316232083,-851.4223,0.000104,2]
[333657938,1722316232093,-817.21,0.00010452,2]
[333657939,1722316232103,-3293.5165576,0.00010489,2]
[333657940,1722316232113,-715.13992449,0.00010499,2]
[333657941,1722316232123,-1000.0,0.00010499,2]
[333657942,1722316232132,-1000.0,0.00010499,2]
[333657943,1722316232141,-866.0,0.00010499,3]
[333657944,1722316232151,-1000.0,0.00010499,3]
[333657945,1722316232160,-1000.0,0.00010499,3]
[333657946,1722316232170,-1000.0,0.00010499,2]
[333657948,1722316232181,-1000.0,0.00010499,2]
[333657949,1722316232191,-1000.0,0.00010499,2]
[333657951,1722316232201,-1000.0,0.00010499,2]
[333657953,1722316232210,-1000.0,0.00010499,2]
[333657954,1722316232220,-1003.0,0.00010499,2]
[333657955,1722316232230,-1000.0,0.00010499,2]
[333657956,1722316232239,-413066.4850828,0.000105,2]
[333657957,1722316232251,-337.21932,0.000105,2]
[333657958,1722316232263,-7902.45457361,0.000105,2]
[333657959,1722316232274,-408.85640308,0.000105,2]
[333657967,1722316237749,-715.13992448,0.00010499,2]
[333657968,1722316237759,-1151.23469606,0.000105,2]
[333657969,1722316237773,-653.55537946,0.000105,2]
[333657970,1722316237808,-1028.52477935,0.000105,2]
[333657971,1722316237820,-666.77284336,0.000105,2]
[333657972,1722316237831,-11902.30971465,0.000105,2]
[333657973,1722316237865,-445.42957939,0.000105,2]
[333657974,1722316237925,-1629.96591577,0.000105,2]
[333657975,1722316237980,-4162.55185861,0.000105,2]
[333657976,1722316237992,-3125.17152471,0.000105,2]
[333657977,1722316238002,-4018.27120797,0.000105,2]
[333657979,1722316239905,-312.60966571,0.000105,2]
[333657980,1722316242192,-263513.74124075,0.000105,2]
[333657981,1722316242250,-302.85004585,0.000105,2]
[333657982,1722316242468,-635.20510333,0.000105,2]
[333658000,1722316242856,-559.5412168,0.000105,2]
[333658001,1722316242967,-485.305,0.000105,2]
[333658002,1722316243023,-470.35915249,0.000105,2]
[333658026,1722316743116,-399.3,8.219e-05,2]
[333658027,1722316783297,150.0,8.219e-05,2]
[333658028,1722317056489,1900.0,0.00025,60]
[333658067,1722317432045,-200.33655857,8.178e-05,2]
[333658068,1722317432055,-397.0,8.218e-05,2]
[333658069,1722317432064,-370.55015169,8.218e-05,2]
[333658070,1722317432076,-462.34378069,8.218e-05,2]
[333658071,1722317432104,-1919.22464758,8.218e-05,2]
[333658072,1722317432116,-1059.27759469,8.218e-05,2]
[333658073,1722317432125,-253.48421251,8.219e-05,2]
[333658081,1722317437887,-2976.3235316,9.345e-05,2]
[333658083,1722317437899,-2391.5390824,9.345e-05,2]
[333658085,1722317437909,-752.47,9.393e-05,2]
[333658087,1722317437920,-174.63,9.445e-05,2]
[333658088,1722317437930,-300.0,9.543e-05,2]
[333658089,1722317437940,-329.37,9.578e-05,2]
[333658090,1722317437950,-300.0,9.593e-05,2]
[333658091,1722317437960,-374.06,9.594e-05,2]
[333658092,1722317437969,-250.0,9.687e-05,2]
[333658093,1722317437979,-1000.0,9.711e-05,2]
[333658094,1722317437988,-1570.7355336,9.714e-05,2]
[333658095,1722317438008,-866.88851668,9.714e-05,2]
[333658096,1722317438171,-372.77594972,9.714e-05,2]
[333658097,1722317438181,-160.87,9.852e-05,2]
[333658098,1722317438191,-160.87,9.869e-05,2]
[333658099,1722317438202,-160.87,9.885e-05,2]
[333658100,1722317438213,-160.87,9.901e-05,2]
[333658101,1722317438222,-150.0,0.00010299,2]
[333658102,1722317438233,-1000.0,0.000103,2]
[333658103,1722317438243,-725.34216188,0.000103,2]
[333658104,1722317438254,-16166.08783812,0.000103,2]
[333658105,1722317438264,-575.553,0.000104,2]
[333658106,1722317438275,-1000.0,0.000104,2]
[333658107,1722317438287,-3287.0637826,0.00010493,2]
[333658108,1722317438296,-1881.147545,0.00010493,2]
[333658109,1722317438305,-1565.4351457,0.00010493,2]
[333658110,1722317438314,-3431.64268061,0.00010493,2]
[333658111,1722317438327,-2836.17144009,0.00010493,2]
[333658112,1722317438337,-165.7621274,0.00010493,2]
[333658113,1722317438347,-10563.06643251,0.00010493,2]
[333658114,1722317438359,-7148.16659559,0.00010493,2]
[333658115,1722317438368,-282.7598028,0.00010493,2]
[333658116,1722317438378,-17097.97395161,0.00010497,2]
[333658117,1722317438389,-54170.55,0.00010497,2]
[333658118,1722317438401,-9553.154996,0.00010497,2]
[333658119,1722317438412,-9084.2900005,0.00010497,2]
[333658120,1722317438424,-13724.235,0.00010497,2]
[333658121,1722317438436,-1384.75,0.00010497,2]
[333658122,1722317438447,-5915.5,0.00010497,2]
[333658123,1722317438459,-272.85,0.00010497,2]
[333658124,1722317438470,-6998.74792347,0.00010497,2]
[333658125,1722317438482,-9284.18896675,0.00010497,2]
[333658126,1722317438493,-1613.18836489,0.00010497,2]
[333658127,1722317440031,-645.18180464,8.219e-05,2]
[333658128,1722317440042,-98.76819536,8.219e-05,2]
[333658129,1722317440051,-167.87818464,0.00010451,2]
[333658130,1722317440062,-576.07181536,0.00010451,2]
[333658131,1722317440071,-406.24744618,0.00010497,2]
[333658132,1722317440090,-670.37,0.00010497,2]
[333658133,1722317440101,-3754.26581263,0.00010497,2]
[333658134,1722317440110,-300.0,0.00010497,2]
[333658135,1722317440120,-758.59968379,0.00010499,2]
[333658136,1722317440129,-35360.46978084,0.000105,2]
[333658137,1722317440205,-181605.50113659,0.000105,2]
[333658138,1722317440265,-910.18281159,0.000105,2]
[333658139,1722317440329,-1499.4973996,0.000105,2]
[333658140,1722317440341,-557.38108761,0.000105,2]
[333658141,1722317440354,-789.18678638,0.000105,2]
[333658142,1722317440393,-389.44550813,0.000105,2]
[333658146,1722317443206,-15914.47074738,0.000105,2]
[333658147,1722317443264,-6466.70264291,0.000105,2]
[333658162,1722317446109,-3109.41954188,0.000105,2]
[333658163,1722317446120,-1087.15276736,0.000105,2]
[333658164,1722317446156,-6794.09475093,0.000105,2]
[333658165,1722317446167,-75763.62811843,0.000105,2]
[333658170,1722317606685,157.073011,0.00025,60]
[333658171,1722317607786,157.073011,0.00025,60]
[333658172,1722317612764,157.073011,0.00025,61]
[333658173,1722317613593,157.073011,0.00025,61]
[333658175,1722317621807,157.073011,0.00025,65]
[333658176,1722317622569,157.073011,0.00025,65]
[333658177,1722317625419,157.073011,0.00025,66]
[333658178,1722317626234,157.073011,0.00025,66]
[333658179,1722317629142,157.073011,0.00025,67]
[333658180,1722317630022,157.073011,0.00025,67]
[333658181,1722317646184,157.073011,0.00025,68]
[333658182,1722317647106,157.073011,0.00025,68]
[333658183,1722317661753,157.073011,0.00025,72]
[333658184,1722317665766,157.073011,0.00025,73]
[333658186,1722317705670,157.073011,0.00025,74]
[333658187,1722317748333,226.073014,0.00025,75]
[333658189,1722317863355,152.7234452,0.00025,60]
[333658190,1722317931135,2000.0,0.000205,120]
[333658192,1722318422022,1413.43,8e-05,10]
[333658220,1722318632127,-155.0,8e-05,2]
[333658221,1722318632136,-295.0,8e-05,2]
[333658235,1722318632230,-1660.29818461,8e-05,2]
[333658236,1722318632243,-608.15910445,8e-05,2]
[333658237,1722318632253,-199.77632154,8e-05,2]
[333658238,1722318632263,-485.18575139,8e-05,2]
[333658239,1722318632273,-244.394646,8e-05,2]
[333658241,1722318632284,-305.13064954,8e-05,2]
[333658243,1722318632294,-10213.33062592,8e-05,2]
[333658245,1722318632304,-305.48903481,8e-05,2]
[333658246,1722318632313,-310.74499932,8e-05,2]
[333658247,1722318632323,-158.80623493,8e-05,2]
[333658248,1722318632333,-411.54934528,8e-05,2]
[333658249,1722318632342,-434.84929795,8e-05,2]
[333658250,1722318632352,-301.4626702,8e-05,2]
[333658251,1722318632361,-155.12542539,8e-05,2]
[333658252,1722318632371,-155.049329,8e-05,2]
[333658253,1722318632380,-705.73,8.219e-05,2]
[333658254,1722318632390,-150.0,8.986e-05,2]
[333658255,1722318632399,-23900.0,9.016e-05,2]
[333658256,1722318632409,-500.0,9.019e-05,2]
[333658257,1722318632419,-405.78,9.019e-05,2]
[333658258,1722318632429,-800.0,9.019e-05,2]
[333658259,1722318632439,-801.71,9.02e-05,2]
[333658260,1722318632448,-304.3,9.022e-05,2]
[333658261,1722318632457,-250.0,9.023e-05,2]
[333658262,1722318632467,-484.27,9.026e-05,2]
[333658263,1722318632477,-200.0,9.062e-05,2]
[333658264,1722318632486,-825.06,9.145e-05,2]
[333658265,1722318632495,-25021.98,9.67e-05,2]
[333658266,1722318632505,-299.99,9.67e-05,2]
[333658267,1722318632515,-182.29,9.807e-05,2]
[333658268,1722318632524,-182.29,9.809e-05,2]
[333658269,1722318632534,-182.29,9.812e-05,2]
[333658270,1722318632543,-182.29,9.814e-05,2]
[333658271,1722318632553,-182.29,9.817e-05,2]
[333658272,1722318632562,-182.29,9.819e-05,2]
[333658273,1722318632572,-182.29,9.822e-05,2]
[333658274,1722318632581,-182.29,9.825e-05,2]
[333658275,1722318632590,-182.29,9.827e-05,2]
[333658276,1722318632600,-182.29,9.83e-05,2]
[333658277,1722318632609,-182.29,9.832e-05,2]
[333658278,1722318632619,-182.29,9.835e-05,2]
[333658279,1722318632628,-150.0,9.835e-05,2]
[333658281,1722318632638,-182.29,9.838e-05,2]
[333658283,1722318632649,-182.29,9.84e-05,2]
[333658285,1722318632659,-182.29,9.843e-05,2]
[333658287,1722318632670,-182.29,9.845e-05,2]
[333658290,1722318632680,-182.29,9.848e-05,2]
[333658291,1722318632690,-2563.434,9.848e-05,2]
[333658292,1722318632701,-182.29,9.85e-05,2]
[333658293,1722318632710,-182.29,9.853e-05,2]
[333658294,1722318632720,-182.29,9.856e-05,2]
[333658295,1722318632730,-834.15,0.0001,2]
[333658296,1722318632741,-420.42,0.0001,2]
[333658297,1722318632753,-834.15,0.0001,2]
[333658298,1722318632763,-420.42,0.0001,2]
[333658299,1722318632773,-419.97,0.0001,2]
[333658300,1722318632782,-834.15,0.0001,2]
[333658301,1722318632792,-834.15,0.0001,2]
[333658302,1722318632802,-834.15,0.0001,2]
[333658303,1722318632811,-834.15,0.0001,2]
[333658304,1722318632821,-834.15,0.0001,2]
[333658305,1722318632834,-834.15,0.0001,2]
[333658306,1722318632844,-784.86,0.0001,2]
[333658307,1722318632853,-800.0,0.00010146,2]
[333658308,1722318632863,-200.0,0.00010195,2]
[333658309,1722318632872,-1000.0,0.000102,2]
[333658310,1722318632882,-1286.0,0.000103,2]
[333658311,1722318632892,-1433.7035,0.00010316,2]
[333658312,1722318632902,-2500.0,0.00010393,2]
[333658313,1722318632911,-441.7725,0.00010397,2]
[333658314,1722318632921,-8229.3478,0.00010397,2]
[333658315,1722318632930,-14136.0511,0.00010397,2]
[333658316,1722318632940,-601.5744,0.00010397,2]
[333658317,1722318632949,-11494.3431,0.000104,2]
[333658318,1722318632959,-82514.304,0.000104,2]
[333658319,1722318632969,-177.35582664,0.000104,2]
[333658320,1722318632978,-612.23594648,0.000104,2]
[333658321,1722318632988,-3000.0,0.000104,2]
[333658322,1722318632997,-2649.32874188,0.000104,2]
[333658323,1722318633007,-500.0,0.00010416,2]
[333658324,1722318633017,-705.73,0.00010424,2]
[333658325,1722318633026,-590.2258422,0.0001049,2]
[333658326,1722318633035,-5804.978439,0.0001049,2]
[333658327,1722318633046,-5804.978439,0.0001049,2]
[333658328,1722318633056,-174.1773706,0.00010493,2]
[333658329,1722318633066,-11631.486811,0.00010493,2]
[333658330,1722318633076,-177.0209174,0.00010493,2]
[333658331,1722318633086,-1952.1658109,0.00010493,2]
[333658332,1722318633096,-1117.2012974,0.00010493,2]
[333658333,1722318633106,-877.3936954,0.00010493,2]
[333658334,1722318633117,-3293.0060674,0.00010493,2]
[333658335,1722318633126,-753.93874405,0.00010497,2]
[333658336,1722318633137,-507.0,0.000105,2]
[333658337,1722318633147,-430877.72290883,0.000105,2]
[333658338,1722318633160,-96325.42483236,0.000105,2]